[Event "Azerbaijan-ch 1st League 2025"]
[Site "Baku"]
[Date "2025.01.14"]
[Round "9.4"]
[White "Garayev, Kanan"]
[Black "Baghirov, Mahammad"]
[Result "1-0"]
[Annotator "TA"]
[ECO "A31"]
[WhiteElo "2340"]
[BlackElo "1932"]
[PlyCount "93"]
[EventDate "2025.01.05"]
[EventType "swiss"]
[EventCountry "AZE"]
[SourceTitle "playchess.com"]
[Source "ChessBase"]
[SourceQuality "1"]
[TimeControl "40/5400+30:1800+30"]

{[%evp 23,93,18,46,37,42,35,39,34,56,52,55,43,47,48,60,41,46,36,66,60,95,92,106,68,69,76,70,26,44,37,31,0,44,32,107,122,154,156,150,139,138,100,103,70,208,95,243,243,337,294,29966,29966,29991,29992,29992,29992,29992,29992,29992,0,29992,0,29992,29993,29993,29994,29994,2128,1436,642,577,545]} 1. c4 {[%emt 0:00:03]} Nf6 {[%emt 0:00:47]} 2. Nc3 {[%emt 0:01:01]} g6 {[%emt 0:02:15]} 3. g3 {[%emt 0:01:35]} Bg7 {[%emt 0:00:06]} 4. Bg2 {[%emt 0:00:04]} O-O {[%emt 0:00:05]} 5. d4 {[%emt 0:00:16][%cal Bd2d4,Bd4d5][%mdl 32]} d6 {[%emt 0:00:26]} 6. Nf3 {[%emt 0:00:05]} Nc6 {[%emt 0:00:07]} 7. O-O {[%emt 0:00:14]} Bf5 {[%emt 0:00:35]} 8. d5 {[%emt 0:01:06]} Na5 {[%emt 0:00:04]} 9. Nd4 {[%emt 0:00:50]} Bd7 {[%emt 0:01:25]} 10. b3 {[%emt 0:02:18]} c5 {[%emt 0:01:17]} 11. dxc6 {[%emt 0:00:42]} Nxc6 {[%emt 0:00:04]} 12. e3 {[%emt 0:08:28]} Qc8 {[%emt 0:04:04]} 13. Re1 {[%emt 0:02:17]} Bh3 {[%emt 0:01:33]} 14. Bh1 {[%emt 0:01:13]} Bg4 {[%emt 0:01:26]} 15. Qd2 {[%emt 0:04:11]} a6 {[%emt 0:01:34]} 16. Bb2 {[%emt 0:01:16]} Nxd4 {[%emt 0:01:23]} 17. Qxd4 {[%emt 0:03:41]} Be6 {[%emt 0:01:55]} 18. Qd2 {[%emt 0:06:51]} Rd8 {[%emt 0:02:19]} 19. e4 {[%emt 0:02:53][%cal Be3e4,Be4d5][%mdl 32]} Qc7 {[%emt 0:05:11]} 20. Nd5 {[%emt 0:05:19]} Nxd5 {[%emt 0:04:55]} 21. Bxg7 {[%emt 0:01:45]} Kxg7 {[%emt 0:00:29]} 22. exd5 {[%emt 0:01:10]} (22. cxd5 Bh3 $14) 22... Bf5 {[%emt 0:00:44]} 23. Qe3 {[%emt 0:06:19][%cal Og3g4]} Re8 {[%emt 0:01:14]} 24. Qd4+ {[%emt 0:01:20]} Kg8 {[%emt 0:00:17]} 25. Re3 {[%emt 0:01:57]} h5 {[%emt 0:05:13]} 26. Rae1 {[%emt 0:04:21]} b5 {[%emt 0:01:44]} 27. Qh4 {[%emt 0:00:26][%cal Re3e7]} Ra7 {[%emt 0:06:04]} 28. h3 {[%emt 0:05:28]} Qc8 {[%emt 0:03:09]} (28... bxc4 $6 29. g4 Bc2 30. gxh5 $16) ({Better is} 28... Qc5 $14) 29. g4 $16 {[%emt 0:06:27]} (29. Rxe7 $6 Raxe7 30. Rxe7 Rxe7 31. Qxe7 bxc4 32. bxc4 (32. Qxd6 $2 c3 $19) 32... Qc5 $11) 29... hxg4 {[%emt 0:00:41]} 30. hxg4 {[%emt 0:01:10]} (30. Rxe7 $2 Rexe7 31. Rxe7 Qd8 32. hxg4 Rxe7 $19) 30... Bxg4 {[%emt 0:00:08]} 31. Rg3 {[%emt 0:02:58]} (31. Rxe7 $2 {perishes.} Rexe7 32. Rxe7 Qd8 33. Qxg4 Rxe7 $19) 31... Bf5 {[%emt 0:01:24]} 32. Ree3 $1 {[%emt 0:02:21] White is much more active.} e5 {[%emt 0:08:00] [#]} 33. Qf6 $1 {[%emt 0:02:14]} bxc4 {[%emt 0:03:55]} (33... Kf8 $1 $14) 34. bxc4 {[%emt 0:02:55]} (34. Bg2 $18 {is more deadly.}) 34... Rc7 {[%emt 0:00:35] [#]} (34... e4 $16) 35. Bg2 $1 $18 {[%emt 0:00:46][%cal Og3h3]} Qd8 {[%emt 0:06:42]} 36. Qxf5 {[%emt 0:00:21] Be4 is the strong threat.} Rxc4 $2 {[%emt 0:00:06] [#]} (36... Kg7 $18 37. Rc3 Rh8) 37. Rxg6+ $1 {[%emt 0:03:29][%mdl 512]} fxg6 {[%emt 0:02:07]} (37... Kf8 38. Rh3) 38. Qxg6+ {[%emt 0:00:19]} Kf8 {[%emt 0:00:01]} 39. Qf5+ {[%emt 0:00:21]} Ke7 {[%emt 0:00:24]} 40. Qe6+ {[%emt 0:00:00]} Kf8 {[%emt 0:00:00]} 41. Qf5+ {[%emt 0:00:22]} Ke7 $1 {[%emt 0:00:16]} 42. Qe6+ {[%emt 0:00:02]} Kf8 {[%emt 0:00:05]} 43. Qh6+ {[%emt 0:00:01]} Kf7 {[%emt 0:02:00]} 44. Rg3 {[%emt 0:00:10][%csl Gg3][%cal Rh6g7]} Rc1+ {[%emt 0:04:38]} 45. Qxc1 {[%emt 0:00:11]} (45. Bf1 $142 Qg5 46. Rxg5 (46. Qxg5 Rxf1+ 47. Kxf1 Rf8 48. Rc3 Rb8 49. Rc7+ Kf8 50. Qh6+ Kg8 51. Qg7#) 46... Ke7 47. Rg7+ Kd8 48. Qxd6+ (48. Qxc1 Re7 49. Qg5 Kc8 50. Qxe7 Kb8 51. Rg8#) 48... Kc8 49. Qd7+ Kb8 50. Qb7#) 45... Rg8 {[%emt 0:00:14]} 46. Rxg8 {[%emt 0:00:41]} Kxg8 {[%emt 0:00:06]} 47. Qh6 {[%emt 0:00:26]} 1-0

[Event "Azerbaijan-ch 1st League 2025"]
[Site "Baku"]
[Date "2025.01.14"]
[Round "9.5"]
[White "Aslanov, Umid"]
[Black "Orujov, Farid"]
[Result "1-0"]
[Annotator "TA"]
[ECO "B22"]
[WhiteElo "2250"]
[BlackElo "2301"]
[PlyCount "91"]
[EventDate "2025.01.05"]
[EventType "swiss"]
[EventCountry "AZE"]
[SourceTitle "playchess.com"]
[Source "ChessBase"]
[SourceQuality "1"]
[TimeControl "40/5400+30:1800+30"]

{[%evp 9,91,20,29,-4,14,21,23,-18,-11,-15,-19,-29,29,-5,33,2,10,0,59,16,17,20,17,-20,84,94,97,53,192,211,229,201,205,205,236,200,231,195,210,194,292,285,306,258,258,223,250,219,218,182,235,232,244,214,209,106,133,34,72,0,0,0,0,-3,0,-72,260,261,410,405,930,914,1366,1341,1252,1133,1096,1096,1096,1083,1072,1048,947,870]} 1. e4 {[%emt 0:00:01]} c5 {[%emt 0:00:04]} 2. c3 {[%emt 0:00:04]} d5 {[%emt 0:00:04]} 3. exd5 {[%emt 0:00:04]} Qxd5 {[%emt 0:00:12]} 4. d4 {[%emt 0:00:05]} Nc6 {[%emt 0:00:50]} 5. Nf3 {[%emt 0:00:08]} Bf5 {[%emt 0:03:22]} 6. Nbd2 {[%emt 0:00:23][%cal Bb1d2,Bd2c4,Bc4b6,Bb6a8][%mdl 32]} cxd4 {[%emt 0:02:39]} 7. Bc4 {[%emt 0:01:12]} Qd7 {[%emt 0:00:39]} 8. cxd4 {[%emt 0:00:16]} e6 $1 {[%emt 0:00:45]} 9. O-O {[%emt 0:00:56]} Nf6 {[%emt 0:00:34][%cal Of8e7]} 10. Bb5 {[%emt 0:01:11]} Bd6 {[%emt 0:02:38] Wards off Ne5} (10... a6 $142 11. Ne5 Qxd4 12. Bxc6+ (12. Nxc6 Qd5 $15) 12... bxc6) 11. Nc4 {[%emt 0:05:24]} O-O {[%emt 0:01:04]} 12. Bg5 {[%emt 0:02:42]} Ne4 {[%emt 0:18:42]} 13. Be3 {[%emt 0:00:01]} a6 {[%emt 0:12:52]} ({Black should try} 13... Qc7 $11) 14. Nb6 {[%emt 0:12:29]} Qd8 {[%emt 0:00:01]} 15. Nxa8 {[%emt 0:03:33]} axb5 {[%emt 0:00:01]} 16. d5 {[%emt 0:00:11][%cal Bd4d5,Bd5e6,Be6e7][%mdl 32]} (16. Nb6 $5) 16... Ne5 {[%emt 0:01:31]} (16... exd5 $11 17. Nb6 Be6) 17. Nxe5 $1 $16 {[%emt 0:12:45]} Bxe5 {[%emt 0:00:04] A strong pair of Bishops.} 18. Nb6 {[%emt 0:00:08]} Bc7 {[%emt 0:16:39] [#]} (18... Bxb2 $14 19. dxe6 Bxa1 20. exf7+ Kxf7 21. Qxa1 Kg8) 19. dxe6 $1 $18 {[%emt 0:00:24]} Bxb6 {[%emt 0:01:09] [#]} (19... Bxe6 20. Qxd8) 20. e7 $1 {[%emt 0:00:08][%mdl 512]} Qxe7 {[%emt 0:02:26]} 21. Bxb6 {[%emt 0:00:05]} Qf6 {[%emt 0:03:25]} 22. Qd4 {[%emt 0:01:59]} Qg6 {[%emt 0:00:01]} 23. Bc7 {[%emt 0:01:09]} h5 {[%emt 0:05:28][%cal Bh7h5,Bh5h4,Bh4h3][%mdl 32]} 24. Qb6 {[%emt 0:05:51]} f6 {[%emt 0:03:25]} (24... Qxb6 25. Bxb6 Be6) 25. Qxb5 {[%emt 0:07:38]} (25. Qxb7 $6 h4 26. Qxb5 Rc8 $18) 25... h4 {[%emt 0:03:27]} 26. f3 {[%emt 0:05:30]} (26. Qxb7 $6 Ng5 27. h3 Nxh3+ 28. Kh2 Ng5 $18) 26... Ng5 {[%emt 0:08:55]} 27. Rad1 {[%emt 0:11:00] Repels Bd3} (27. Qxb7 $6 Bd3 $16) 27... Kh7 {[%emt 0:04:31]} 28. Qb4 {[%emt 0:04:51]} (28. Qxb7 Re8) 28... h3 {[%emt 0:01:52][%cal Og5f3] ( -> ...Nxf3+!)} 29. g3 $1 {[%emt 0:00:39]} (29. Qxf8 $2 Ne6 $19) 29... Re8 {[%emt 0:01:26]} (29... Bd3) 30. Qh4+ {[%emt 0:03:13]} (30. Qxb7 Bd3 31. Rf2 Be2 $14) 30... Kg8 {[%emt 0:00:24][%cal Of5g4]} 31. Qc4+ {[%emt 0:00:01]} Be6 {[%emt 0:01:50]} 32. Qc3 {[%emt 0:01:03]} (32. Qb5 $18) 32... Rc8 $16 {[%emt 0:01:38][%cal Og6f5,Be8c8,Bc8c7,Bc7c2,Bc2b2][%mdl 32]} 33. a4 {[%emt 0:04:47]} ({Better is} 33. Rd4 $1 $16) 33... Qf5 {[%emt 0:02:22]} 34. Rd4 {[%emt 0:07:54]} (34. g4 $16 Nxf3+ 35. Rxf3 (35. Qxf3 Qxf3 36. Rxf3 Bxg4 $11) 35... Qxg4+ 36. Kf2 Qg2+ 37. Ke3) 34... Bd5 $1 $11 {[%emt 0:00:40][%cal Og5e6]} 35. Rf4 {[%emt 0:02:30][%cal Bd4f4,Bf4f5,Bf5d5,Bd5d7][%mdl 32]} Qd7 {[%emt 0:00:02]} 36. Rd1 {[%emt 0:01:06][%cal Oc3b3] and Qb3! would now be decisive} Rxc7 {[%emt 0:02:02]} (36... Ne6 {simplifies} 37. Rc4 Rxc7 38. Rxd5 Qxd5 39. Rxc7 Nxc7 40. Qxc7 Qxf3 41. Qc8+ Kf7) 37. Qa5 {[%emt 0:00:01] [#]} (37. Rxd5 $1 $11 Qxd5 38. Qxc7 Qd1+ 39. Kf2 Qd2+ 40. Kf1 Qg2+ 41. Ke1 Nxf3+ 42. Rxf3 Qxf3 43. Qc8+ Kh7 44. Qxh3+ Kg6 45. Qf1 Qe4+ 46. Kf2) 37... Ne6 $2 {[%emt 0:00:41][%mdl 8192] [#]} 38. Rf5 $1 $18 {[%emt 0:02:37]} (38. Qxd5 Qxd5 39. Rxd5 Rc1+ 40. Kf2 Rc2+ 41. Ke3 Nxf4 42. Kxf4 Rxb2 $15) (38. Rxd5 Rc1+ 39. Kf2 Rc2+ 40. Ke3 Qc6 41. Rd8+ Kf7 $11 (41... Nxd8 42. Qxd8+ Kf7 43. Rd4 $11)) 38... Nd4 {[%emt 0:00:34]} (38... Rc2 {was called for.} 39. Rfxd5 (39. Qxd5 Qxd5 40. Rfxd5 Ng5 $16) 39... Ng5) 39. Rxd5 {[%emt 0:01:00]} ({Inferior is} 39. Rxd4 Rc1+ 40. Kf2 Rc2+ 41. Kg1 Rg2+ (41... Qxf5 42. Qxd5+ Qxd5 43. Rxd5 $19) 42. Kh1 Qxf5 $17) (39. Qxd5+ Qxd5 40. Rxd5 Nxf3+ 41. Kf2 Nxh2 $11) 39... Nxf3+ {[%emt 0:00:02]} (39... Qe7 $142 40. Kh1 (40. R5xd4 Qe3+ 41. Kf1 Qxf3+ 42. Ke1 Qe3+ 43. Kf1 Qf3+ 44. Ke1 Qe3+ 45. Kf1 Qf3+ $11) (40. Qa8+ $2 Kh7 $19) 40... Nc6) 40. Kf2 {[%emt 0:00:00]} Rc2+ {[%emt 0:00:00]} 41. Kxf3 {[%emt 0:00:14]} Qc6 {[%emt 0:07:24]} 42. Qd8+ {[%emt 0:00:27]} Kh7 {[%emt 0:00:07]} 43. Qd7 {[%emt 0:00:02]} Qxd7 {[%emt 0:05:09]} 44. Rxd7 {[%emt 0:00:01]} Rxb2 {[%emt 0:00:09]} 45. R1d2 {[%emt 0:00:10]} Rb3+ {[%emt 0:00:15]} 46. R7d3 {[%emt 0:00:01]} 1-0

[Event "Azerbaijan-ch 1st League 2025"]
[Site "Baku"]
[Date "2025.01.14"]
[Round "9.6"]
[White "Alizada, Pasham"]
[Black "Isbatov, Kanan"]
[Result "1-0"]
[Annotator "TA"]
[ECO "D00"]
[WhiteElo "2117"]
[BlackElo "1882"]
[PlyCount "59"]
[EventDate "2025.01.05"]
[EventType "swiss"]
[EventCountry "AZE"]
[SourceTitle "playchess.com"]
[Source "ChessBase"]
[SourceQuality "1"]
[TimeControl "40/5400+30:1800+30"]

{[%evp 9,59,0,0,0,0,-2,6,16,16,11,17,25,43,54,52,52,53,59,52,64,102,89,98,89,134,115,119,120,112,112,235,230,307,296,279,277,457,391,883,877,881,885,985,984,960,864,930,869,933,922,897,905]} 1. d4 {[%emt 0:00:01]} Nf6 {[%emt 0:02:53]} 2. Nc3 {[%emt 0:00:04]} d5 {[%emt 0:00:16]} 3. Bf4 {[%emt 0:00:04]} g6 {[%emt 0:01:32]} 4. e3 {[%emt 0:00:17]} Bg7 {[%emt 0:00:06]} 5. h4 {[%emt 0:00:02]} h5 {[%emt 0:00:16]} 6. Nf3 {[%emt 0:00:14]} (6. Nb5 $5 Na6 $8 7. Nc3 $11) 6... O-O {[%emt 0:00:12][%cal Oc7c5]} 7. Ne5 {[%emt 0:00:01]} c5 {[%emt 0:09:12]} 8. Qd2 {[%emt 0:00:01]} Nc6 {[%emt 0:13:46]} 9. f3 {[%emt 0:00:03]} Nd7 {[%emt 0:07:24]} 10. Nxd5 {[%emt 0:05:35]} Ndxe5 {[%emt 0:01:42]} 11. dxe5 {[%emt 0:00:05]} Nxe5 {[%emt 0:00:20]} 12. O-O-O {[%emt 0:03:29][%cal Od5f6] And now Nf6+! would win.} Be6 {[%emt 0:03:57] [#]} 13. Qc3 $1 {[%emt 0:09:01]} Nd7 $1 {[%emt 0:03:24]} (13... Bxd5 $2 14. Bxe5 Bh6 15. Qe1 $18 (15. Qxc5 e6 $16)) 14. Qa3 {[%emt 0:01:17]} Rc8 {[%emt 0:03:22] Wards off Nc7} 15. Bc4 {[%emt 0:09:45][%cal Og2g4]} a6 {[%emt 0:07:15] [#]} 16. Bg5 $1 $36 {[%emt 0:01:02][%mdl 2048] White is on the roll.} Re8 {[%emt 0:06:06] [#]} 17. Nxe7+ $1 {[%emt 0:04:54]} Rxe7 {[%emt 0:00:12]} 18. Bxe6 {[%emt 0:00:01] White is more active.} fxe6 {[%emt 0:00:42]} 19. Qd3 $1 {[%emt 0:00:13]} Qb6 {[%emt 0:16:56]} 20. Bxe7 $18 {[%emt 0:01:06]} Bxb2+ {[%emt 0:07:42]} 21. Kd2 {[%emt 0:00:04]} Ne5 {[%emt 0:00:06]} 22. Qb3 {[%emt 0:00:52]} Qc6 $2 {[%emt 0:04:59]} (22... Kf7 {was necessary.}) 23. Ke2 {[%emt 0:00:17]} (23. Qxb2 $2 {too greedy.} Nc4+ 24. Kc3 Nxb2 25. Kxb2 c4 $19) 23... c4 $2 {[%emt 0:02:51]} (23... Qb5+ 24. Qxb5 axb5 25. Rd8+ Rxd8) 24. Qxb2 {[%emt 0:00:23]} c3 {[%emt 0:00:06]} 25. Qb3 {[%emt 0:00:23]} Nc4 {[%emt 0:01:55]} 26. Qxc3 {[%emt 0:00:44]} e5 {[%emt 0:00:25]} 27. Qd3 {[%emt 0:00:33]} Nb6 {[%emt 0:01:58]} 28. Bd6 {[%emt 0:00:57]} Qxc2+ {[%emt 0:00:47]} 29. Qxc2 {[%emt 0:00:03]} Rxc2+ {[%emt 0:00:04]} 30. Kd3 {[%emt 0:00:00]} 1-0

[Event "Azerbaijan-ch 1st League 2025"]
[Site "Baku"]
[Date "2025.01.14"]
[Round "9.7"]
[White "Hamidov, Allahverdi"]
[Black "Gurbanov, Ismayil"]
[Result "1/2-1/2"]
[Annotator "TA"]
[ECO "E54"]
[WhiteElo "2200"]
[BlackElo "2248"]
[PlyCount "61"]
[EventDate "2025.01.05"]
[EventType "swiss"]
[EventCountry "AZE"]
[SourceTitle "playchess.com"]
[Source "ChessBase"]
[SourceQuality "1"]
[TimeControl "40/5400+30:1800+30"]

{[%evp 17,61,0,0,-2,13,7,4,0,12,8,1,-16,18,29,34,11,22,7,14,9,17,0,0,0,0,-12,-15,-15,-14,-14,0,0,0,0,0,-6,-6,-9,-3,-3,-3,-8,-9,-9,-9,-9]} 1. d4 {[%emt 0:00:02]} Nf6 {[%emt 0:12:08]} 2. c4 {[%emt 0:00:07]} e6 {[%emt 0:00:09]} 3. Nc3 {[%emt 0:00:07]} Bb4 {[%emt 0:00:06]} 4. e3 {[%emt 0:00:04]} O-O {[%emt 0:00:05]} 5. Bd3 {[%emt 0:00:03]} d5 {[%emt 0:00:23]} 6. Nf3 {[%emt 0:00:07]} dxc4 {[%emt 0:00:14]} 7. Bxc4 {[%emt 0:00:02]} c5 {[%emt 0:00:09]} 8. O-O {[%emt 0:00:04]} cxd4 {[%emt 0:00:06]} 9. exd4 {[%emt 0:00:04]} b6 {[%emt 0:00:06]} 10. Ne5 {[%emt 0:00:17]} Bb7 {[%emt 0:00:20]} 11. Qb3 {[%emt 0:00:07]} Bxc3 {[%emt 0:00:39]} 12. bxc3 {[%emt 0:00:05]} Bd5 {[%emt 0:09:53]} 13. Bxd5 {[%emt 0:00:13]} Qxd5 {[%emt 0:00:37]} 14. Bb2 {[%emt 0:02:24]} Nbd7 {[%emt 0:01:09]} 15. c4 {[%emt 0:04:06]} Qb7 {[%emt 0:00:22]} 16. Nxd7 {[%emt 0:01:53]} Nxd7 {[%emt 0:02:33]} 17. d5 {[%emt 0:02:04]} exd5 {[%emt 0:02:29]} 18. cxd5 {[%emt 0:00:26]} Nc5 {[%emt 0:00:58]} 19. Qc3 {[%emt 0:04:54][%csl Gb2][%cal Rc3g7]} f6 {[%emt 0:00:28][%cal Of8d8]} 20. Rad1 {[%emt 0:01:55]} Rad8 {[%emt 0:06:59]} 21. Qc4 {[%emt 0:04:51]} Qa6 {[%emt 0:02:03]} 22. Qxa6 {[%emt 0:00:58]} Nxa6 {[%emt 0:00:02]} 23. Ba3 {[%emt 0:03:53]} Rf7 {[%emt 0:00:08]} 24. Rfe1 {[%emt 0:02:38]} Nc5 {[%emt 0:00:37]} 25. Bxc5 {[%emt 0:00:21]} bxc5 $11 {[%emt 0:00:01][%mdl 4096] Endgame KRR-KRR} 26. Rd2 {[%emt 0:00:17]} Rfd7 {[%emt 0:00:01]} 27. Red1 {[%emt 0:00:16]} c4 {[%emt 0:00:02]} 28. g3 {[%emt 0:00:12]} c3 {[%emt 0:00:01]} 29. Rc2 {[%emt 0:00:06]} Rxd5 {[%emt 0:00:02]} 30. Rxd5 {[%emt 0:00:07]} Rxd5 {[%emt 0:00:30]} 31. Rxc3 {[%emt 0:00:06]} 1/2-1/2

[Event "Azerbaijan-ch 1st League 2025"]
[Site "Baku"]
[Date "2025.01.14"]
[Round "9.9"]
[White "Ibrahimli, Suat"]
[Black "Idrisov, Tabriz"]
[Result "1/2-1/2"]
[Annotator "TA"]
[ECO "B00"]
[WhiteElo "1949"]
[BlackElo "2073"]
[PlyCount "85"]
[EventDate "2025.01.05"]
[EventType "swiss"]
[EventCountry "AZE"]
[SourceTitle "playchess.com"]
[Source "ChessBase"]
[SourceQuality "1"]
[TimeControl "40/5400+30:1800+30"]

{[%evp 9,85,12,4,0,0,0,0,-18,-11,-23,0,-43,-32,-35,-37,-47,-31,-74,-79,-87,-59,-78,-84,-87,-83,-94,-58,-113,0,-7,0,-17,-9,-14,-8,-22,0,-10,0,0,0,0,0,-11,32,-18,-11,-14,-7,-7,-7,-96,-6,-14,-14,-14,-6,-22,0,-14,-14,-14,-14,-14,-14,-14,0,-14,8,0,47,47,47,47,47,47,47,47]} 1. e4 {[%emt 0:00:07]} Nc6 {[%emt 0:00:53]} 2. d4 {[%emt 0:02:12]} d5 {[%emt 0:00:09]} 3. e5 {[%emt 0:00:52]} Bf5 {[%emt 0:00:06]} 4. Be2 {[%emt 0:01:09]} e6 {[%emt 0:00:55]} 5. Nf3 {[%emt 0:01:38]} f6 {[%emt 0:02:07]} 6. exf6 {[%emt 0:01:18]} Qxf6 {[%emt 0:05:51]} 7. c3 {[%emt 0:01:44]} Bd6 {[%emt 0:01:44]} 8. a4 {[%emt 0:04:21]} h6 {[%emt 0:03:31]} 9. Na3 {[%emt 0:00:38]} a6 {[%emt 0:07:04]} 10. Be3 {[%emt 0:01:21]} Nge7 {[%emt 0:01:12][%cal Bg8e7,Be7g6,Bg6f4,Bf4e2][%mdl 32]} 11. b4 {[%emt 0:00:47]} O-O {[%emt 0:05:37]} 12. O-O {[%emt 0:03:03]} Ng6 {[%emt 0:06:02]} 13. Qd2 {[%emt 0:17:38]} Be4 {[%emt 0:07:47]} 14. Ne1 {[%emt 0:12:57]} Nf4 {[%emt 0:01:20]} 15. f3 {[%emt 0:00:31]} Nxe2+ {[%emt 0:04:14]} 16. Qxe2 {[%emt 0:00:33]} Bg6 {[%emt 0:01:42]} 17. f4 {[%emt 0:09:14]} Be4 $1 {[%emt 0:09:19]} 18. Nb1 {[%emt 0:00:30] [#]} (18. Nac2 $15) 18... Bh7 {[%emt 0:10:04] This pair of bishops is nice.} (18... g5 $1 $17 {[%cal Rg5f4]} 19. Nd2 gxf4 (19... Bxf4 20. Bxf4 gxf4 21. Nxe4 $16)) 19. Nd2 $11 {[%emt 0:00:23]} Qg6 {[%emt 0:00:30]} 20. g3 {[%emt 0:00:49]} a5 {[%emt 0:01:23]} 21. b5 {[%emt 0:00:18]} Ne7 {[%emt 0:00:12][%cal Bc6e7,Be7c8,Bc8b6,Bb6c4][%mdl 32]} 22. Nef3 {[%emt 0:00:23]} Qh5 {[%emt 0:02:48]} (22... Bxf4 23. Bxf4 Rxf4 24. Qe5 $14) 23. Rf2 {[%emt 0:03:44]} Nc8 {[%emt 0:04:51]} 24. Ne5 {[%emt 0:06:27]} Qxe2 {[%emt 0:01:15]} 25. Rxe2 {[%emt 0:02:37]} Nb6 {[%emt 0:00:09]} 26. Nb3 {[%emt 0:01:17]} Nc4 {[%emt 0:03:51]} 27. Bf2 {[%emt 0:03:25]} (27. Nxc4 $14 dxc4 28. Nc5) 27... Bxe5 $1 {[%emt 0:10:13]} 28. dxe5 {[%emt 0:00:30]} b6 {[%emt 0:00:13] Dodges Nc5} 29. Nd4 {[%emt 0:00:17]} Rae8 {[%emt 0:00:15]} 30. h4 {[%emt 0:00:30] [#]} (30. Be3 $11 {remains equal.}) 30... h5 {[%emt 0:00:30]} ({Better is} 30... g5 $1 $17 31. hxg5 hxg5) 31. Rd1 {[%emt 0:00:57]} Bg6 {[%emt 0:01:54]} 32. Kh2 {[%emt 0:00:19]} Kh7 {[%emt 0:00:06]} 33. Kh3 {[%emt 0:00:12]} Kg8 {[%emt 0:02:52][%cal Bh7g8,Bg8f7,Bf7e7,Be7e6][%mdl 32]} 34. Be3 {[%emt 0:00:09]} Kf7 {[%emt 0:00:18]} 35. Bc1 {[%emt 0:00:15][%cal Of4f5]} Ke7 {[%emt 0:00:48]} 36. Rf2 {[%emt 0:00:12]} Be4 {[%emt 0:00:49]} 37. Re2 {[%emt 0:00:58]} Bg6 {[%emt 0:00:33]} 38. Rg1 {[%emt 0:00:37]} Bf5+ {[%emt 0:01:22]} 39. Nxf5+ {[%emt 0:01:16]} exf5 {[%emt 0:00:08]} (39... Rxf5 $11 40. Reg2 (40. g4 hxg4+ 41. Rxg4 Kf7 $11) 40... Rg8) 40. Be3 $14 {[%emt 0:00:00]} Ke6 {[%emt 0:00:00]} 41. Bd4 {[%emt 0:00:27]} Rb8 {[%emt 0:06:01]} 42. Rb1 {[%emt 0:00:15]} Rfc8 {[%emt 0:00:31]} 43. Ra2 {[%emt 0:55:10]} 1/2-1/2

[Event "Azerbaijan-ch 1st League 2025"]
[Site "Baku"]
[Date "2025.01.14"]
[Round "9.10"]
[White "Rzayev, Chingiz"]
[Black "Salimov, Shovkat"]
[Result "0-1"]
[Annotator "TA"]
[ECO "A45"]
[WhiteElo "2153"]
[BlackElo "1977"]
[PlyCount "64"]
[EventDate "2025.01.05"]
[EventType "swiss"]
[EventCountry "AZE"]
[SourceTitle "playchess.com"]
[Source "ChessBase"]
[SourceQuality "1"]
[TimeControl "40/5400+30:1800+30"]

{[%evp 9,64,-4,0,-8,-12,-16,-12,-19,-20,-106,-106,-106,-110,-122,-121,-112,-104,-95,-100,-125,-120,-122,-113,-133,-126,-119,-117,-120,-119,-275,-267,-412,-201,-272,-174,-181,-127,-247,-215,-236,-224,-231,-226,-277,-256,-416,-407,-29992,-339,-29992,-29993,-29993,-29994,-29994,-29995,-29995,-440]} 1. d4 {[%emt 0:00:02]} Nf6 {[%emt 0:00:24]} 2. Bg5 {[%emt 0:00:03]} g6 {[%emt 0:00:17]} 3. Bxf6 {[%emt 0:00:12]} exf6 {[%emt 0:00:01]} 4. e3 {[%emt 0:00:07]} Bg7 {[%emt 0:00:05]} 5. Bd3 {[%emt 0:00:04]} d5 {[%emt 0:00:07]} 6. Qf3 {[%emt 0:00:14]} f5 {[%emt 0:00:57][%cal Oc7c5]} 7. Ne2 {[%emt 0:00:13]} c6 {[%emt 0:00:59]} 8. Nd2 {[%emt 0:00:06]} Nd7 {[%emt 0:00:54]} 9. g4 {[%emt 0:02:17]} (9. Nf4 $11 {keeps the balance.}) 9... fxg4 $17 {[%emt 0:02:22]} 10. Qxg4 {[%emt 0:00:01] [#]} Ne5 $1 {[%emt 0:02:24][%mdl 512]} 11. Qg3 {[%emt 0:00:01]} Nxd3+ {[%emt 0:00:16]} 12. cxd3 {[%emt 0:00:02]} Qa5 {[%emt 0:03:58]} 13. Nc3 {[%emt 0:00:56] Wards off Qb5} O-O {[%emt 0:07:25]} 14. h4 {[%emt 0:00:55]} h5 {[%emt 0:01:12]} 15. O-O-O {[%emt 0:00:13]} Re8 {[%emt 0:00:29]} 16. Rhg1 {[%emt 0:00:45]} Qa6 {[%emt 0:06:37][%cal Ob7b6]} 17. Nb3 {[%emt 0:02:20]} b6 {[%emt 0:01:34]} 18. Qf4 {[%emt 0:00:19]} Bf5 {[%emt 0:02:14]} 19. Rg5 $2 {[%emt 0:06:02]} (19. Kc2 $17 {is a better defense.}) 19... Bxd3 $19 {[%emt 0:03:52]} 20. Rdg1 {[%emt 0:00:06]} (20. Re5 $142) 20... Qc8 {[%emt 0:07:13]} (20... c5 $142 21. Rxd5 Re6) 21. Qg3 {[%emt 0:01:46]} Qd7 {[%emt 0:13:34]} 22. Rxh5 {[%emt 0:00:21] [#]} f6 {[%emt 0:01:38] Inhibits Rg5.} ({Black should play} 22... a5 $1 $19 {[%cal Ra5a4] and ...a4 should not be overlooked} 23. Na4 Qd8 (23... gxh5 24. Qxg7#)) 23. e4 {[%emt 0:00:15]} gxh5 {[%emt 0:01:38]} 24. Qxd3 {[%emt 0:00:02]} dxe4 {[%emt 0:00:12]} 25. Nxe4 {[%emt 0:00:12]} Kh8 {[%emt 0:00:13]} 26. Qf3 {[%emt 0:00:57]} Qd5 {[%emt 0:06:10]} 27. Rxg7 $2 {[%emt 0:01:55]} (27. Nbd2) 27... Qxe4 {[%emt 0:16:04]} ({Less strong is} 27... Kxg7 28. Qxf6+ Kg8 29. Qg6+ Kf8 30. Qf6+ Qf7 31. Qh6+ Qg7 32. Qf4+ Kg8 33. Nf6+ Kh8 34. Nxe8 Rxe8 35. Nd2 $19) 28. Qxf6 {[%emt 0:00:07]} (28. Rg3 $19 Qe1+ (28... Qxh4 $2 29. Nd2 $19) 29. Qd1) 28... Re6 $2 {[%emt 0:01:06]} (28... Qe1+ {mates} 29. Kc2 Re2+ 30. Kd3 Qd1+ (30... Rxf2 31. Qh6#) 31. Nd2 Qxd2+ (31... Rxd2+ $2 32. Ke3 $19) 32. Kc4 Qc2+ (32... Qxb2 33. Qh6#) 33. Kb4 a5+ (33... Rxf2 34. Qh6+) 34. Ka3 Qxb2+ 35. Ka4 Qxa2#) 29. Qf7 $2 {[%emt 0:02:32]} (29. Re7+ $19 Rxf6 30. Rxe4) 29... Qe1+ {[%emt 0:00:50]} 30. Kc2 {[%emt 0:00:01]} Re2+ {[%emt 0:00:22]} 31. Kd3 {[%emt 0:00:04]} Qd1+ {[%emt 0:00:08]} (31... Rxf2 32. Rh7#) 32. Kc4 {[%emt 0:01:16]} Qc2+ {[%emt 0:01:08]} ({Weaker is} 32... Rxb2 33. Rh7#) 0-1